Cogmind - Beta 9.6 @@@ ROGUE MODE // 2020.09.03 @ 20:21:04 // AFD2020/Player2 Player: Michael Result: Self-destructed Performance ------------- Evolutions (1) 500 Regions Visited (2) 400 Robots Destroyed (1) 5 Value Destroyed (1) 1 Prototype IDs (0) 0 Alien Tech Used (0) 0 Bonus (333) 333 TOTAL SCORE: 1239 Bonus ------- Pacifist 200 Follower Combat Kills 133 Cogmind --------- Core Integrity 3/400 Matter 258/300 Energy 45/100 System Corruption 0% Temperature Cool (0) Movement Walking (120) Location -9/Materials Parts ------- > --- POWER (1) -------- (None) > --- PROPULSION (3) --- Aluminum Leg Aluminum Leg > --- UTILITY (3) ------ Small Storage Unit Targeting Computer Targeting Computer > --- WEAPON (2) ------- (None) > --- INVENTORY (6) ---- Ion Engine Light Nuclear Core Wheel High-capacity Matter Pod (200) High-capacity Matter Pod (3) Advanced Terrain Scanner Peak State ------------ > --- POWER ------------ Light Nuclear Core > --- PROPULSION ------- Aluminum Leg Aluminum Leg Aluminum Leg > --- UTILITY ---------- Small Storage Unit Advanced Terrain Scanner > --- WEAPON ----------- (None) > --- INVENTORY -------- Ion Engine Aluminum Leg Aluminum Leg High-capacity Matter Pod [Rating: 10] Favorites ----------- Power Ion Engine Engine Ion Engine Power Core Light Nuclear Core Propulsion Aluminum Leg Leg Aluminum Leg Wheel Wheel Utility Small Storage Unit Device Advanced Terrain Scanner Storage Small Storage Unit Processor Targeting Computer Weapon None Build | -11 -10 -9 ------- Run | Scr Mat Mat Slots Evolved 2 | . . 2 Power . | . . . Propulsion 1 | . . 1 Utility 1 | . . 1 Weapon . | . . . Parts Attached 16 | 4 . 12 Power 3 | 1 . 2 Engine 2 | 1 . 1 Core 1 | . . 1 Reactor . | . . . Propulsion 9 | 2 . 7 Treads . | . . . Leg 6 | 2 . 4 Wheel 3 | . . 3 Hover . | . . . Flight . | . . . Utility 4 | 1 . 3 Device 1 | . . 1 Storage 1 | 1 . . Processor 2 | . . 2 Hackware . | . . . Protection . | . . . Artifact . | . . . Weapon . | . . . Energy Gun . | . . . Energy Cannon . | . . . Ballistic Gun . | . . . Ballistic Cannon . | . . . Launcher . | . . . Special Weapon . | . . . Impact Weapon . | . . . Slashing Weapon . | . . . Piercing Weapon . | . . . Special Melee Weapon . | . . . Unidentified Prototypes . | . . . Parts Lost 4 | . . 4 Power 1 | . . 1 Propulsion 3 | . . 3 Utility . | . . . Weapon . | . . . Highest Loss Streak 3 | . . 3 Average Slot Usage (%) 60 | . 57 62 Engine 6 | . 14 2 Core 4 | . . 6 Leg 28 | . 28 28 Wheel 2 | . . 4 Device 5 | . . 8 Storage 12 | . 14 11 Naked Turns . | . . . Heaviest Build 12 | 9 9 12 Greatest Support 30 | 20 20 30 Greatest Overweight (x) 1 | . . 1 Average Overweight (x) . | . . . Largest Inventory Capacity 6 | 6 6 6 Average Capacity 5 | 5 6 6 Most Carried 6 | 3 4 6 Average Carried 3 | 1 2 5 Final Capacity 6 | 6 6 6 Final Carried 6 | 3 4 6 Class Distribution -------------------- 100% | Mutant Dominant Class ---------------- Mutant | -10/Materials Mutant | -9/Materials Resources | -11 -10 -9 ----------- Run | Scr Mat Mat Matter Collected 438 | 215 . 223 Remotely . | . . . Salvage Created 30 | . . 30 Parts 2 | . . 2 Haulers Intercepted . | . . . Recyclers Shooed . | . . . Parts Field Recycled . | . . . Retrieved Matter . | . . . Parts Self-Destructed . | . . . Prevented . | . . . Kills | -11 -10 -9 ------- Run | Scr Mat Mat Combat Hostiles Destroyed . | . . . Classes Destroyed 1 | . . 1 Worker 1 | . . 1 Best Kill Streak 1 | . . 1 Combat Bots Only . | . . . Max Kills in Single Turn 1 | . . 1 Gunslinging . | . . . Exploded . | . . . Melee . | . . . Uniques/NPCs Destroyed . | . . . Combat | -11 -10 -9 -------- Run | Scr Mat Mat Damage Taken 682 | . . 682 Core 154 | . . 154 Absorbed by Shields . | . . . Core Remaining (%) 88 | 100 77 . Volleys Fired . | . . . Largest . | . . . Hottest . | . . . Shots Fired . | . . . Gun . | . . . Cannon . | . . . Launcher . | . . . Special . | . . . Kinetic . | . . . Thermal . | . . . Explosive . | . . . Electromagnetic . | . . . Robot Hit Streak . | . . . Robot Miss Streak . | . . . Penetration Max . | . . . Secondary Targets . | . . . Shots Hit Robots . | . . . Core Hits 5 | . . 5 Critical Hits . | . . . Critical Kills . | . . . Critical Parts Destroyed . | . . . Melee Attacks . | . . . Impact . | . . . Slashing . | . . . Piercing . | . . . Sneak Attacks . | . . . Combat Hostiles . | . . . Follow-up Attacks . | . . . Damage Inflicted 53 | . . 53 Guns . | . . . Cannons . | . . . Explosions . | . . . Melee . | . . . Ramming 53 | . . 53 Kinetic . | . . . Thermal . | . . . Explosive . | . . . Electromagnetic . | . . . Impact . | . . . Slashing . | . . . Piercing . | . . . Highest Corruption . | . . . Average Corruption . | . . . Corruption Purged . | . . . Overload Shots . | . . . Overflow Damage . | . . . Projectiles . | . . . Explosions . | . . . Melee . | . . . Knockbacks . | . . . Impact . | . . . Kinetic . | . . . Secondary . | . . . Self-Inflicted Damage 13 | . . 13 Shots . | . . . Rammed 10 | . . 10 Targets Rammed 18 | . . 18 Kicked 8 | . . 8 Crushed . | . . . Highest Temperature . | . . . Average Temperature . | . . . Received Heat Transfer 39 | . . 39 Siege Activations . | . . . Robots Corrupted . | . . . Combat Hostiles . | . . . Parts Fried . | . . . Impact Corruptions . | . . . Robots Melted . | . . . Combat Hostiles . | . . . Parts Melted . | . . . Heat Transferred . | . . . Parts Sabotaged . | . . . Parts Stolen . | . . . Parts Stripped . | . . . Power Chain Reactions . | . . . Missiles Intercepted . | . . . Alert | -11 -10 -9 ------- Run | Scr Mat Mat Peak Influence 175 | . 134 175 Average Influence 57 | . 69 61 Maximum Alert Level . | . . . Low Security (%) 100 | 100 100 100 Level 1 . | . . . Level 2 . | . . . Level 3 . | . . . Level 4 . | . . . Level 5 . | . . . High Security . | . . . Max Security . | . . . Squads Dispatched 4 | . 2 2 Investigation 1 | . . 1 Extermination . | . . . Reinforcement 3 | . 2 1 Assault . | . . . Garrison . | . . . Intercept . | . . . Construction Impeded . | . . . Haulers Reinforced . | . . . Stealth | -11 -10 -9 --------- Run | Scr Mat Mat Distress Signals 3 | . 1 2 Communications Jammed . | . . . Distress Signals . | . . . Times Spotted 20 | . 7 13 Peak Tracking Total 6 | . 4 6 Tactical Retreats 4 | . 1 3 Traps | -11 -10 -9 ------- Run | Scr Mat Mat Traps Triggered . | . . . Indirectly . | . . . Trap Hack Attempts . | . . . Triggered . | . . . Disarmed . | . . . Reprogrammed . | . . . Reused . | . . . Traps Extracted . | . . . Installed . | . . . Triggered . | . . . Machines | -11 -10 -9 ---------- Run | Scr Mat Mat Machines Disabled . | . . . Max in Single Turn . | . . . Machines Sabotaged . | . . . Garrisons Compromised . | . . . Overloaded Fab Kills . | . . . Fab Network Shutdowns . | . . . Hacking | -11 -10 -9 --------- Run | Scr Mat Mat Machines Accessed 5 | . 1 4 Terminals 4 | . 1 3 Fabricators . | . . . Repair Stations . | . . . Recycling Units 1 | . . 1 Scanalyzers . | . . . Garrison Access . | . . . Total Hacks 16 | . 8 8 Successful 11 | . 5 6 Failed 5 | . 3 2 Catastrophic 2 | . 1 1 Database Lockouts . | . . . Manual 10 | . 4 6 Terminals 15 | . 8 7 Fabricators . | . . . Repair Stations . | . . . Recycling Units 1 | . . 1 Scanalyzers . | . . . Garrison Access . | . . . Terminal Hacks 7 | . 4 3 Emergency Access Points 1 | . 1 . Terminal Index 2 | . 1 1 Unreport Threat 1 | . . 1 Locate Traps 1 | . 1 . Patrol Status 1 | . 1 . Zone Layout 1 | . . 1 Fabricator Hacks . | . . . Repair Station Hacks . | . . . Recycling Unit Hacks 1 | . . 1 Retrieve Components 1 | . . 1 Scanalyzer . | . . . Garrison Access Hacks . | . . . Unauthorized Hacks 3 | . 1 2 Terminals 3 | . 1 2 Botnet 2 | . 1 1 Disrupt 1 | . . 1 Fabricators . | . . . Repair Stations . | . . . Recycling Units . | . . . Scanalyzers . | . . . Garrison Access . | . . . Data Cores Recovered . | . . . Used . | . . . Hacking Detections 4 | . 1 3 Full Trace Events . | . . . Feedback Events . | . . . Feedback Blocked . | . . . Robot Schematics Acquired . | . . . Robots Built . | . . . Matter . | . . . Time . | . . . Total Robot Build Rating . | . . . Part Schematics Acquired . | . . . Parts Built . | . . . Matter . | . . . Time . | . . . Total Part Build Rating . | . . . Parts Repaired . | . . . Time . | . . . Parts Recycled . | . . . Recycled Matter . | . . . Retrieved Matter . | . . . Retrieved Components 3 | . . 3 Parts Scanalyzed . | . . . Part Schematics Acquired . | . . . Parts Damaged . | . . . Bothacking | -11 -10 -9 ------------ Run | Scr Mat Mat Used RIF Installer . | . . . Robots Hacked . | . . . Non-combat . | . . . Combat . | . . . Robot Hacks Applied . | . . . Relay Couplers Released . | . . . Robots Rewired . | . . . Allies Hacked . | . . . Hacks Repelled . | . . . Allies | -11 -10 -9 -------- Run | Scr Mat Mat Total Allies 1 | . 1 . Largest Group 1 | . 1 1 Highest-Rated Group 60 | . 54 60 Highest-Rated Ally 60 | . 54 60 Total Orders . | . . . Ally Attacks 39 | . 22 17 Total Damage 371 | . 186 185 Kills 7 | . 3 4 Allies Corrupted . | . . . Allies Melted . | . . . Intel | -11 -10 -9 ------- Run | Scr Mat Mat Robot Analysis Total . | . . . Derelict Logs Recovered . | . . . Drone Launches . | . . . Drone Recoveries . | . . . Exploration | -11 -10 -9 ------------- Run | Scr Mat Mat Turns Passed 551 | 59 171 321 Spaces Moved 401 | 45 131 225 Core 5 | 5 . . Treads . | . . . Legs 335 | 40 131 164 Wheels 61 | . . 61 Hover . | . . . Flight . | . . . Fastest Speed 50 | 50 120 80 Average Speed 113 | 112 120 109 Slowest Speed 120 | 120 120 120 Overloaded Moves . | . . . Propulsion Burnouts . | . . . Robots Hopped . | . . . Cave-ins Triggered . | . . . Exploration Rate (%) 21 | 4 33 26 Regions Visited 2 Branch Regions . Pre-discovered Areas . | . . . Known Exits Taken . | . . . Unknown Exits Taken 2 | 1 1 . Scrap Searched . | . . . Spaces Dug . | . . . Terrain Destroyed . | . . . Melee . | . . . Projectile . | . . . AOE . | . . . Actions | -11 -10 -9 --------- Run | Scr Mat Mat Total 494 | 51 146 297 Wait 41 | . 9 32 Move 399 | 44 130 225 Hop . | . . . Pick Up 9 | 3 4 2 Fast Attach 11 | 4 . 7 Attach 4 | . . 4 Detach 6 | . . 6 Swap 1 | . . 1 Drop 5 | . 3 2 Fire . | . . . Melee . | . . . Ram 3 | . . 3 Kick 15 | . . 15 Crush . | . . . Escape Stasis . | . . . Rewire . | . . . Trap . | . . . Miscellaneous . | . . . Route ------- -11/Scrapyard -10/Materials -9/Materials History --------- Turn | Location | Event 5 | -11/Scrapyard | Discovered new exit (range 15) 60 | -11/Scrapyard | Entered Materials 190 | -10/Materials | Discovered new exit (range 14) 231 | -10/Materials | Entered another Materials area 231 | -9/Materials | Accompanied by 1 ally 231 | -9/Materials | Evolved 2 slots: Propulsion x1, Utility x1 318 | -9/Materials | Build established: Mutant 511 | -9/Materials | Core integrity fell below 50% 526 | -9/Materials | Lost 3 parts (1p2n) 547 | -9/Materials | Core integrity fell below 20% 552 | -9/Materials | Self-destructed Last Messages --------------- 00469_ Aluminum Leg destroyed. 00470_ Dropped Broken Aluminum Leg. 00474_ Acquired Imp. Ion Engine. 00480_ Aluminum Leg destroyed. 00481_ Kicked K-01 Serf out of the way. 00481_ K-01 Serf destroyed. 00482_ Acquired 30 matter. 00484_ Acquired Wheel. 00491_ Slammed into A-02 Transporter. 00495_ Imp. Ion Engine destroyed. 00510_ Connecting with Terminal... 00517_ W-16 Scout sends out distress signal. 00530_ Acquired Targeting Computer. 00532_ Dropped Lgt. Nuclear Core. 00535_ Acquired Targeting Computer. 00539_ Slammed into S-10 Pest. 00539_ Wheel permanently disabled. 00539_ Destabilizing: Short circuit. 00540_ Slammed into S-10 Pest. 00544_ Wheel destroyed. Map ----- +----------------------------------------------------+ | ???????????????????????????????????? | | ???????????????????????????????????? | | ???????????????????????????????????? | | ???????????????????????????????????? | | ???????????????????????????????????? | | ???????????????????????????????????? | | ???????????????????????????????????? | | ???????????????????????????????????? | | ???????????????????????????????????? | | ???????????????????????????????????? | | ?????????????????????????? ???????? | | ????????????????????? ??? ???????? | | ??????????????????####k### ???????? | | ???????????????? ???????? | | ??????????????? ???????? | | ??????????????? t ???????? | | ???????????????"" a#???????? | | ??????????????""" #???????? | | ???????????? """ |=#???????? | | ????????????? /// k ==#???????? | | ??????????????? // #???????? | | ????????????????? // #???????? | | ??????????????????? ????????? | | ???????????? ???? ??? ????????? | | ?????#???????#??#####?# #????????? | | ???? ??????????? # @#????????? | | ????????????????" """ # #????????? | | ????????????????" """ g #????????? | | ????????????????" """ # #?#??????? | | ???????????????? g ?#r ########## | | ??????????????? Y ??# # !! # | | ??????????????## ##???# # # | | ###########????#??????# # * # | | # #######?????# s# # | | # """ # ####### + # | | # """ # # """ # | | # """ / # """ # | | # """ # # """ # | | # T" # ########### # | | # """ #### ##?????????########## | | # #??# #???????????????????? | | ###########??# #####???????????????? | | ############## #???????????????? | | #???????????????? | | ## #### +???????????????# | | ?# #??# """"""" #???????????????? | | ## #??# """"""" #???????????????? | | ##/#### """"""" ##???????????????? | | ! # """"""" #????????????????? | | # """"""" #????????????????? | +----------------------------------------------------+ Best States ------------- Heat Dissipation 28 Energy Generation 14 Energy Capacity 265 Matter Stores 300 Matter Capacity 300 Sight Range 16 Terrain Scan Range 20 Terrain Scan Density 10 Evasion (%) 44 Targeting Accuracy 10 Item Schematics ----------------- None Robot Schematics ------------------ None Fabricated ------------ Nothing Alien Tech Used ----------------- None Achievements -------------- None Challenges ------------ None Player 2 | -11 -10 -9 ---------- Run | Scr Mat Mat Slots Evolved 2 | . 2 . Power . | . . . Propulsion . | . . . Utility 1 | . 1 . Weapon 1 | . 1 . Parts Attached 11 | . 5 6 Parts Lost 7 | . . 7 Damage Taken 938 | . 147 791 Core 299 | . 56 243 Player 2/Cogmind (%) 66 | . 100 61 Absorbed by Shields . | . . . Damage Inflicted 371 | . 186 185 Player 2/Cogmind (%) 87 | . 100 77 Combat Hostiles Destroyed 5 | . 2 3 Player 2/Cogmind (%) 100 | . 100 100 Game ------ Seed FactoryRecoilCleaver Manual? 0 Play Time 00:14:38 Cumulative 189.0 hours Start 2020.09.03 @ 17:12:33 End 2020.09.03 @ 20:21:04 Sessions 1 Manual Loads 0 Difficulty Rogue Special Mode AFD2020/Player2 Game No. 71 Rogue 35 Adventurer 36 Explorer 0 Win Type - Total 6 Types 6/0/0/0/0/0/0 Lore% 33 Gallery% 52 Achievement% 38 Wizard Run 0 Options --------- ASCII 0 Keyboard 1 Movement Vi Keybinds 0 Fullscreen 1 Font 18/Terminus Map View 76x50 Tactical HUD 1 Map Filters NONE Filters NONE Steam 0 RUN: 326ee33c-c095-424f-beef-64b3dcbc9224